Workbook

Sheet Лист1
B2: ПРИМЕРНОЕ ДВУХНЕДЕЛЬНОЕ МЕНЮ ДЛЯ ОБУЧАЮЩИХСЯ В ОБЩЕОБРАЗОВАТЕЛЬНЫХ ОРГАНИЗАЦИЯХ С 1-4 КЛАССЫ
B3: (НОЯБРЬ, ДЕКАБРЬ)
A4: № РЕЦЕПТУР | B4: Наименование блюд | G4: Выход | H4: Белки, г | I4: Жиры, г | K4: Углеводы, г | M4: Калорийность, ккал | O4: Витамин B1, мг | P4: Витамин С, мг | R4: Витамин А, мг | T4: Витамин Е, мг | V4: Ca, мг | W4: P, мг | X4: Mg, мг | Y4: Fe, мг
B5: 2-ая неделя
B6: 1 день
A7: № 338 Сбор.рец. На прод-ию для обуч. Во всех образ.учреж-Дели 2015 | B7: ПЛОДЫ И ЯГОДЫ СВЕЖИЕ (АПЕЛЬСИНЫ) | G7: 100 | H7: 0.450 | I7: 0.200 | K7: 7.100 | M7: 43 | O7: 0.030 | P7: 10.000 | R7: - | T7: 0.200 | V7: 16.000 | W7: 11.000 | X7: 9.000 | Y7: 2.200
A8: № 45 Сбор.рец. На прод-ию для обуч. Во всех образ.учреж-Дели 2015 | B8: САЛАТ ИЗ БЕЛОКОЧАННОЙ КАПУСТЫ | G8: 60 | H8: 0.931 | I8: 3.051 | K8: 5.645 | M8: 54 | O8: 0.018 | P8: 21.603 | R8: - | T8: 1.391 | V8: 25.537 | W8: 18.260 | X8: 9.920 | Y8: 0.344
A9: ТТК | B9: ФРИКАДЕЛЬКИ МЯСНЫЕ В СОУСЕ , п/ф | G9: 44/40 | H9: 8.945 | I9: 7.743 | K9: 3.194 | M9: 164 | O9: 0.046 | P9: 2.650 | R9: - | T9: 2.256 | V9: 12.530 | W9: 110.071 | X9: 16.077 | Y9: 1.647
A10: № 508/3 сборник 2004 г | B10: КАША ГРЕЧНЕВАЯ РАССЫПЧАТАЯ | G10: 150 | H10: 6.622 | I10: 9.024 | K10: 33.000 | M10: 170 | O10: 0.291 | P10: - | R10: 21.000 | T10: 0.468 | V10: 20.632 | W10: 177.928 | X10: 104.220 | Y10: 3.448
A11: № 377 Сбор.рец. На прод-ию для обуч. Во всех образ.учреж-Дели -2015 | B11: ЧАЙ ЧЕРНЫЙ С САХАРОМ | G11: 200/15 | H11: - | I11: - | K11: 14.970 | M11: 60 | O11: - | P11: - | R11: - | T11: - | V11: 0.450 | W11: - | X11: - | Y11: 0.045
B12: ХЛЕБ БЕЛЫЙ | G12: 30 | H12: 2.280 | I12: 0.240 | K12: 14.760 | M12: 71 | O12: 0.033 | P12: - | R12: - | T12: 0.330 | V12: 6.000 | W12: 19.500 | X12: 4.200 | Y12: 0.330
B13: ХЛЕБ СЕЛЬСКИЙ | G13: 20 | H13: 1.000 | I13: 0.200 | K13: 9.000 | M13: 44 | O13: 0.014 | P13: - | R13: - | T13: 0.108 | V13: 2.760 | W13: 12.720 | X13: 3.000 | Y13: 0.372
B14: Итого: | H14: =SUM(H7:H13) -> 20.228 | I14: =SUM(I7:J13) -> 20.458 | K14: =SUM(K7:L13) -> 87.669 | M14: =SUM(M7:N13) -> 606 | O14: 0.432 | P14: 34.253 | R14: 21 | T14: 4.753 | V14: 83.909 | W14: 349.479 | X14: 146.417 | Y14: 8.386
B15: 2 день
A16: № 71 Сбор.рец. На прод-ию для обуч. Во всех образ.учреж-Дели -2015 | B16: ОВОЩИ НАТУРАЛЬНЫЕ СВЕЖИЕ (ОГУРЦЫ) | G16: 60 | H16: 0.420 | I16: 0.060 | K16: 1.140 | M16: 7 | O16: 0.018 | P16: 4.200 | R16: - | T16: 0.060 | V16: 10.200 | W16: 18.000 | X16: 8.400 | Y16: 0.300
A17: ТТК | B17: ФРИКАССЕ ИЗ КУРИНЫХ ГРУДОК | G17: 50/50 | H17: 9.025 | I17: 11.037 | K17: 6.749 | M17: 145 | O17: 0.107 | P17: 5.700 | R17: 38.000 | T17: 2.690 | V17: 25.050 | W17: 147.720 | X17: 29.290 | Y17: 1.414
A18: № 304 Сбор.рец. На прод-ию для обуч. Во всех образ.учреж-Дели -2015 | B18: РИС ОТВАРНОЙ | G18: 150 | H18: 3.834 | I18: 5.434 | K18: 31.600 | M18: 210 | O18: 0.044 | P18: - | R18: 27.000 | T18: 0.284 | V18: 11.460 | W18: 84.150 | X18: 27.330 | Y18: 0.597
A19: № 383 Сбор.рец. На прод-ию для обуч. Во всех образ.учреж-Дели -2015 | B19: КАКАО С МОЛОКОМ | G19: 200 | H19: 3.600 | I19: 2.100 | K19: 25.168 | M19: 125 | O19: 0.044 | P19: 1.300 | R19: 20.000 | T19: 0.012 | V19: 125.720 | W19: 116.200 | X19: 31.000 | Y19: 1.040
B20: ХЛЕБ БЕЛЫЙ | G20: 30 | H20: 2.280 | I20: 0.240 | K20: 14.760 | M20: 71 | O20: 0.033 | P20: - | R20: - | T20: 0.330 | V20: 6.000 | W20: 19.500 | X20: 4.200 | Y20: 0.330
B21: ХЛЕБ СЕЛЬСКИЙ | G21: 20 | H21: 1.000 | I21: 0.200 | K21: 9.000 | M21: 44 | O21: 0.014 | P21: - | R21: - | T21: 0.108 | V21: 2.760 | W21: 12.720 | X21: 3.000 | Y21: 0.372
B22: Итого: | H22: =SUM(H16:H21) -> 20.159 | I22: =SUM(I16:J21) -> 19.071 | K22: =SUM(K16:L21) -> 88.417 | M22: =SUM(M16:N21) -> 602 | O22: 0.26 | P22: 11.2 | R22: 85 | T22: 3.484 | V22: 181.19 | W22: 398.29 | X22: 103.22 | Y22: 4.053
B23: 3 день
A24: № 71 Сбор.рец. На прод-ию для обуч. Во всех образ.учреж-Дели -2015 | B24: ОВОЩИ НАТУРАЛЬНЫЕ СВЕЖИЕ (ПОМИДОРЫ) | G24: 60 | H24: 0.660 | I24: 0.120 | K24: 2.280 | M24: 14 | O24: 0.036 | P24: 15.000 | R24: - | T24: 0.420 | V24: 8.400 | W24: 15.600 | X24: 12.000 | Y24: 0.540
A25: ТТК | B25: БИТОЧКИ РЫБНЫЕ , п/ф | G25: 80 | H25: 8.129 | I25: 9.431 | K25: 9.38 | M25: 104 | O25: 0.017 | P25: 0.290 | R25: 25.000 | T25: 0.946 | V25: 8.242 | W25: 21.297 | X25: 1.124 | Y25: 0.303
A26: № 312 Сбор.рец. На прод-ию для обуч. Во всех образ.учреж-Дели -2015 | B26: ПЮРЕ КАРТОФЕЛЬНОЕ С МАСЛОМ | G26: 150/5 | H26: 3.090 | I26: 8.282 | K26: 22 | M26: 179 | O26: 0.164 | P26: 25.943 | R26: 45.500 | T26: 0.231 | V26: 47.805 | W26: 98.835 | X26: 32.978 | Y26: 1.241
A27: № 379 Сбор.рец. На прод-ию для обуч. Во всех образ.учреж-Дели -2015 | B27: КОФЕЙНЫЙ НАПИТОК С МОЛОКОМ | G27: 200 | H27: 3.300 | I27: 1.510 | K27: 29.060 | M27: 152 | O27: 0.115 | P27: 1.300 | R27: 20.250 | T27: 0.750 | V27: 170.600 | W27: 130.000 | X27: 34.000 | Y27: 1.060
B28: ХЛЕБ БЕЛЫЙ | G28: 30 | H28: 2.280 | I28: 0.240 | K28: 14.760 | M28: 71 | O28: 0.033 | P28: - | R28: - | T28: 0.330 | V28: 6.000 | W28: 19.500 | X28: 4.200 | Y28: 0.330
B29: ХЛЕБ СЕЛЬСКИЙ | G29: 20 | H29: 1.000 | I29: 0.200 | K29: 9.000 | M29: 44 | O29: 0.014 | P29: - | R29: - | T29: 0.108 | V29: 2.760 | W29: 12.720 | X29: 3.000 | Y29: 0.372
B30: Итого: | H30: =SUM(H24:H29) -> 18.459 | I30: =SUM(K30) -> 86.547 | K30: =SUM(K24:L29) -> 86.547 | M30: =SUM(M24:N29) -> 564 | O30: 0.379 | P30: 42.533 | R30: 90.75 | T30: 2.785 | V30: 243.807 | W30: 297.952 | X30: 87.302 | Y30: 3.846
B31: 4 день
A32: ТТК | B32: САЛАТ ИЗ МОРКОВИ | G32: 60 | H32: 0.516 | I32: 3.132 | K32: 4.45 | M32: 49 | O32: 0.029 | P32: 2.430 | R32: - | T32: 2.834 | V32: 13.302 | W32: 26.850 | X32: 18.468 | Y32: 0.358
A33: № 243 Сбор.рец. На прод-ию для обуч. Во всех образ.учреж-Дели -2015 | B33: СОСИСКИ ОТВАРНЫЕ | G33: 100 | H33: 7.400 | I33: 9.450 | K33: 0.800 | M33: 108 | O33: 0.030 | P33: - | R33: - | T33: 0.500 | V33: 25.000 | W33: 139.001 | X33: 15.000 | Y33: 1.800
A34: № 202 Сбор.рец. На прод-ию для обуч. Во всех образ.учреж-Дели -2015 | B34: МАКАРОННЫЕ ИЗДЕЛИЯ ОТВАРНЫЕ С МАСЛОМ | G34: 150/5 | H34: 5.140 | I34: 8.068 | K34: 28.54 | M34: 220 | O34: 0.087 | P34: - | R34: 21.000 | T34: 0.816 | V34: 16.457 | W34: 47.009 | X34: 8.479 | Y34: 0.869
A35: № 383 Сбор.рец. На прод-ию для обуч. Во всех образ.учреж-Дели -2015 | B35: КАКАО С СГУЩЕННЫМ МОЛОКОМ | G35: 200 | H35: 3.600 | I35: 2.100 | K35: 25 | M35: 125 | O35: 0.044 | P35: 1.300 | R35: 20.000 | T35: 0.012 | V35: 125.720 | W35: 116.200 | X35: 31.000 | Y35: 1.040
B36: ХЛЕБ СЕЛЬСКИЙ | G36: 20 | H36: 1.000 | I36: 0.200 | K36: 9.000 | M36: 44 | O36: 0.014 | P36: - | R36: - | T36: 0.108 | V36: 2.760 | W36: 12.720 | X36: 3.000 | Y36: 0.372
B37: ХЛЕБ БЕЛЫЙ | G37: 30 | H37: 2.280 | I37: 0.240 | K37: 14.760 | M37: 71 | O37: 0.033 | P37: - | R37: - | T37: 0.330 | V37: 6.000 | W37: 19.500 | X37: 4.200 | Y37: 0.330
B38: Итого: | H38: =SUM(H32:H37) -> 19.936 | I38: =SUM(I32:J37) -> 23.190 | K38: =SUM(K32:L37) -> 82.718 | M38: =SUM(M32:N37) -> 617 | O38: =SUM(O32:O37) -> 0.237 | P38: 3.73 | R38: 61 | T38: 4.65 | V38: 190.439 | W38: 362.78 | X38: 80.147 | Y38: 4.779
B39: 5 день
A40: № 52 Сбор.рец. На прод-ию для обуч. Во всех образ.учреж-Дели -2015 | B40: САЛАТ ИЗ СВЕКЛЫ ОТВАРНОЙ (с маслом) | G40: 60 | H40: 0.855 | I40: 3.653 | K40: 11.580 | M40: 56 | O40: 0.011 | P40: 5.700 | R40: - | T40: 1.641 | V40: 21.090 | W40: 24.582 | X40: 12.540 | Y40: 0.798
A41: ТТК | B41: ГРУДКА КУРИНАЯ В СЛИВОЧНОМ СОУСЕ | G41: 60/30 | H41: 13.650 | I41: 10.756 | K41: 1.632 | M41: 154 | O41: 0.068 | P41: 2.326 | R41: 68.677 | T41: 3.956 | V41: 25.185 | W41: 123.198 | X41: 15.716 | Y41: 1.009
A42: № 304 Сбор.рец. На прод-ию для обуч. Во всех образ.учреж-Дели -2015 | B42: РИС ОТВАРНОЙ | G42: 150 | H42: 3.834 | I42: 5.434 | K42: 31.600 | M42: 210 | O42: 0.044 | P42: - | R42: 27.000 | T42: 0.284 | V42: 11.460 | W42: 84.150 | X42: 27.330 | Y42: 0.597
A43: № 377 Сбор.рец. На прод-ию для обуч. Во всех образ.учреж-Дели -2015 | B43: ЧАЙ ЧЕРНЫЙ С САХАРОМ | G43: 200/15 | H43: - | I43: - | K43: 14.970 | M43: 60 | O43: - | P43: - | R43: - | T43: - | V43: 0.450 | W43: - | X43: - | Y43: 0.045
B44: ХЛЕБ СЕЛЬСКИЙ | G44: 20 | H44: 1.000 | I44: 0.200 | K44: 9.000 | M44: 44 | O44: 0.014 | P44: - | R44: - | T44: 0.108 | V44: 2.760 | W44: 12.720 | X44: 3.000 | Y44: 0.372
B45: ХЛЕБ БЕЛЫЙ | G45: 30 | H45: 2.280 | I45: 0.240 | K45: 14.760 | M45: 71 | O45: 0.033 | P45: - | R45: - | T45: 0.330 | V45: 6.000 | W45: 19.500 | X45: 4.200 | Y45: 0.330
B46: Итого: | H46: =SUM(H40:H45) -> 21.619 | I46: =SUM(I40:J45) -> 20.283 | K46: =SUM(K40:L45) -> 83.542 | M46: =SUM(M40:N45) -> 595 | O46: 0.17 | P46: 8.026 | R46: 95.677 | T46: 6.319 | V46: 66.945 | W46: 264.15 | X46: 62.786 | Y46: 3.151
B47: 6 день
A48: № 14 сборник 2004 г | B48: САЛАТ ИЗ СОЛЁНЫХ ОГУРЦОВ С ЛУКОМ | G48: 60 | H48: 2.700 | I48: 3.064 | K48: 4.500 | M48: 37 | O48: 0.014 | P48: 3.330 | R48: - | T48: 1.387 | V48: 13.968 | W48: 16.944 | X48: 8.064 | Y48: 0.364
A49: ТТК | B49: ПЕЛЬМЕНИ "ДЛЯ УМНИКОВ И УМНИЦ" ОТВАРНЫЕ С МАСЛОМ, п/ф | G49: 180/5 | H49: 11.980 | I49: 16.975 | K49: 27.38 | M49: 312 | O49: 0.159 | P49: 2.491 | R49: 32.251 | T49: 1.283 | V49: 44.453 | W49: 200.918 | X49: 27.579 | Y49: 2.401
A50: № 377 Сбор.рец. На прод-ию для обуч. Во всех образ.учреж-Дели -2015 | B50: ЧАЙ ЧЕРНЫЙ С САХАРОМ, ЛИМОНОМ | G50: 200/15/7 | H50: 0.084 | I50: 0.012 | K50: 15.185 | M50: 62 | O50: 0.003 | P50: 2.800 | R50: - | T50: 0.014 | V50: 3.250 | W50: 1.540 | X50: 0.840 | Y50: 0.087
B51: ХЛЕБ СЕЛЬСКИЙ | G51: 40 | H51: 2.000 | I51: 0.400 | K51: 18.000 | M51: 88 | O51: 0.014 | P51: - | R51: - | T51: 0.108 | V51: 2.760 | W51: 12.720 | X51: 3.000 | Y51: 0.372
B52: ХЛЕБ БЕЛЫЙ | G52: 30 | H52: 2.280 | I52: 0.240 | K52: 14.760 | M52: 71 | O52: 0.033 | P52: - | R52: - | T52: 0.330 | V52: 6.000 | W52: 19.500 | X52: 4.200 | Y52: 0.330
B53: Итого: | H53: =SUM(H48:H52) -> 19.044 | I53: =SUM(I48:J52) -> 20.691 | K53: =SUM(K48:L52) -> 79.825 | M53: =SUM(M48:N52) -> 570 | O53: =SUM(O48:O52) -> 0.223 | P53: 8.621 | R53: 52.251 | T53: 3.172 | V53: 71.631 | W53: 253.122 | X53: 43.683 | Y53: 3.564

Sheet Лист2

Sheet Лист3
